bitfinex/quotes_BTCUSD_20220207
["timestamp","ask_amount","ask_price","bid_price","bid_amount"]
[1644193462628,1.4307856,42083.0,42075.0,1.4015873]
[1644193462629,0.9989,42081.0,42075.0,1.4015873]
[1644193462826,0.11893386,42079.0,42075.0,1.26062626]
[1644193463027,0.09107984,42077.0,42075.0,0.03311437]
[1644193463232,0.09107984,42077.0,42075.0,0.02811437]
[1644193463233,3.06025406,42076.0,42075.0,0.02811437]
[1644193463429,4.22058772,42076.0,42071.0,20.01]
[1644193463627,4.22058772,42076.0,42071.0,19.65320939]
[1644193463628,0.15193551,42074.0,42071.0,19.65320939]
[1644193463829,0.0438,42073.0,42071.0,19.65320939]
[1644193464131,0.15135398,42074.0,42071.0,19.65320939]
[1644193464132,0.05946758,42076.0,42072.0,1.15]
[1644193464328,0.278405,42078.0,42075.0,0.04990609]
[1644193464329,0.0438,42077.0,42075.0,0.04990609]
[1644193464526,0.0438,42077.0,42076.0,0.63615999]
[1644193465567,0.02065505,42082.0,42076.0,0.63615999]
[1644193465768,0.02065505,42082.0,42081.0,0.04990609]
[1644193465965,0.0438,42088.0,42077.0,0.21383158]
[1644193466167,0.0438,42088.0,42083.0,0.19942567]
[1644193466967,0.1438,42088.0,42083.0,0.19942567]
[1644193467169,0.1438,42088.0,42083.0,0.00056232]
[1644193467371,0.2810082,42087.0,42083.0,0.00056232]
[1644193467571,0.330585,42086.0,42083.0,0.00056232]
[1644193467768,0.380585,42086.0,42083.0,0.00056232]
[1644193467967,0.330585,42085.0,42083.0,0.00056232]
[1644193468269,0.1,42085.0,42082.0,0.00056233]
[1644193468469,0.330585,42084.0,42082.0,0.00056233]
[1644193468768,0.09768429,42083.0,42082.0,0.00056233]
[1644193468967,0.70410043,42083.0,42082.0,0.00056233]
[1644193469215,0.70410043,42083.0,42071.0,19.65226572]
[1644193469216,0.75410043,42083.0,42071.0,19.65226572]
[1644193469427,0.1094597,42080.0,42071.0,19.65226572]
[1644193469617,0.49134825,42079.0,42071.0,19.65226572]
[1644193469818,0.64134825,42079.0,42071.0,19.65226572]
[1644193470020,0.09245546,42077.0,42071.0,19.65226572]
[1644193470216,0.40708626,42076.0,42071.0,19.65226572]
[1644193470415,0.059472,42073.0,42071.0,19.65226572]
[1644193470616,0.37939947,42072.0,42071.0,19.65226572]
[1644193470814,0.62407114,42072.0,42071.0,19.65226572]
[1644193471021,0.52939947,42072.0,42071.0,19.58206572]
[1644193471222,0.52939947,42072.0,42071.0,19.22926572]
[1644193471816,0.253271,42072.0,42071.0,19.22926572]
[1644193472215,0.153271,42072.0,42071.0,19.22926572]
[1644193472624,0.42864349,42072.0,42071.0,19.22926572]
[1644193472817,0.53279266,42072.0,42071.0,19.22926572]
[1644193473068,0.53279266,42072.0,42071.0,17.51431909]
[1644193473069,0.58279266,42072.0,42071.0,17.51431909]
[1644193473270,0.58279266,42072.0,42071.0,14.9848811]
[1644193473271,1.68169266,42072.0,42071.0,14.9848811]
[1644193473472,1.68169266,42072.0,42071.0,10.44661529]
[1644193473473,1.68535266,42072.0,42071.0,10.44661529]
[1644193473668,1.68535266,42072.0,42071.0,9.99581529]
[1644193473669,2.94582266,42072.0,42071.0,9.99581529]
[1644193473867,3.11556409,42072.0,42071.0,8.55146853]
[1644193474069,3.61562409,42072.0,42071.0,6.82095883]
[1644193474370,3.61562409,42072.0,42071.0,6.10710183]
[1644193474371,3.63911409,42072.0,42071.0,6.10710183]
[1644193474671,2.52852379,42072.0,42071.0,6.10710183]
[1644193474869,3.52742379,42072.0,42071.0,6.10710183]
[1644193475069,2.92141588,42072.0,42071.0,6.10710183]
[1644193475470,2.79780588,42072.0,42071.0,6.10710183]
[1644193475671,2.79780588,42072.0,42071.0,4.0638728]
[1644193476271,1.79890588,42072.0,42071.0,4.0638728]
[1644193476471,2.79780588,42072.0,42071.0,4.0638728]
[1644193476716,2.89780588,42072.0,42071.0,4.0638728]
[1644193476916,2.77997452,42072.0,42071.0,4.0638728]
[1644193477116,2.67997452,42072.0,42071.0,4.0638728]
[1644193477319,1.68107452,42072.0,42071.0,4.0638728]
[1644193478118,2.70358452,42072.0,42071.0,4.0572728]
[1644193478322,2.70358452,42072.0,42071.0,2.38212509]
[1644193478619,2.80358452,42072.0,42071.0,2.38212509]
[1644193478818,3.0215257,42072.0,42071.0,1.31135009]
[1644193479018,3.5215257,42072.0,42071.0,1.31135009]
[1644193479218,4.3521707,42072.0,42071.0,0.57988009]
[1644193479418,4.3518707,42072.0,42071.0,0.56118009]
[1644193479618,4.0214657,42072.0,42071.0,0.55788009]
[1644193479818,0.449562,42067.0,42066.0,0.002]
[1644193480023,1.087455,42067.0,42066.0,0.002]
[1644193480219,1.337455,42067.0,42066.0,0.002]
[1644193480490,1.47443852,42067.0,42066.0,0.002]
[1644193480676,1.45082852,42067.0,42066.0,0.002]
[1644193480977,1.52443852,42067.0,42066.0,0.002]
[1644193481182,1.47443852,42067.0,42066.0,0.002]
[1644193482077,1.40082852,42067.0,42066.0,0.002]
[1644193482478,1.40082852,42067.0,42061.0,0.0083]
[1644193482479,0.330585,42063.0,42061.0,0.0083]
[1644193482675,0.84278751,42062.0,42061.0,0.0083]
[1644193482876,0.99278751,42062.0,42061.0,0.0083]
[1644193483181,0.99278751,42062.0,42038.0,0.05100609]
[1644193483182,1.2,42061.0,42038.0,0.05100609]
[1644193483383,0.05,42056.0,42055.0,0.00236595]
[1644193483578,0.05,42056.0,42038.0,0.0011]
[1644193483579,0.05,42048.0,42043.0,0.0009]
[1644193483778,0.05,42042.0,42038.0,0.0011]
[1644193483981,0.380585,42040.0,42038.0,0.0011]
[1644193484231,0.380585,42040.0,42022.0,0.0011]
[1644193484232,0.05,42033.0,42022.0,0.0011]
[1644193484453,0.330585,42031.0,42022.0,0.0011]
[1644193484629,0.0438,42030.0,42022.0,0.0011]
[1644193484830,0.380585,42028.0,42026.0,0.0001]
[1644193485028,0.33886871,42027.0,42022.0,0.0001]
[1644193485229,0.33886871,42027.0,42021.0,0.0033]
[1644193485230,0.330585,42026.0,42021.0,0.0033]
[1644193485429,0.28026934,42025.0,42023.0,0.0011]
[1644193485629,0.305585,42024.0,42023.0,0.0011]
[1644193485836,0.1,42026.0,42023.0,0.63815815]
[1644193485837,0.16337352,42026.0,42023.0,0.63815815]
[1644193486031,0.0438,42029.0,42023.0,0.86338815]
[1644193486231,0.1438,42029.0,42028.0,0.04990609]
[1644193486432,0.1438,42029.0,42025.0,0.1291433]
[1644193487033,0.1438,42029.0,42025.0,0.04990609]
[1644193487232,0.1438,42029.0,42023.0,0.58825206]
[1644193487233,0.1938,42029.0,42023.0,0.58825206]
[1644193487432,0.1938,42029.0,42027.0,0.04990609]
[1644193487433,0.1438,42029.0,42027.0,0.04990609]
[1644193487635,0.1438,42029.0,42028.0,0.225196]
[1644193487976,0.1438,42029.0,42025.0,0.00055457]
[1644193487977,0.0438,42036.0,42025.0,0.00055457]
[1644193488171,0.0438,42036.0,42028.0,0.04990609]
[1644193488571,0.0438,42036.0,42031.0,0.19647794]
[1644193488572,0.1438,42036.0,42031.0,0.19647794]
[1644193488774,0.330602,42035.0,42034.0,0.04990609]
[1644193489171,0.330602,42035.0,42033.0,0.04990609]
[1644193489773,0.1,42036.0,42033.0,0.04990609]
[1644193490673,0.15,42036.0,42033.0,0.04990609]
[1644193491276,0.15,42036.0,41979.0,0.21506432]
[1644193491277,0.330602,42034.0,42032.0,0.00051607]
[1644193491482,0.330602,42033.0,42032.0,0.00051607]
[1644193491723,0.424402,42033.0,42032.0,0.00051607]
[1644193491920,0.524402,42033.0,42032.0,0.00051607]
[1644193492120,0.80244291,42033.0,42032.0,0.00051607]
[1644193492321,0.524402,42033.0,42027.0,0.04990609]
[1644193492528,0.524402,42033.0,42000.0,0.19371478]
[1644193492529,2.07611766,42024.0,42000.0,0.19371478]
[1644193492726,2.07611766,42024.0,41993.0,0.0999]
[1644193492727,0.05,41986.0,41971.0,0.24866382]
[1644193492927,0.4,42008.0,41971.0,0.24866382]
[1644193492928,0.05,41983.0,41971.0,0.00070146]
[1644193493127,0.19627772,41985.0,41971.0,0.00111564]
[1644193493128,0.5474,41975.0,41971.0,0.00111564]
[1644193493326,0.5474,41972.0,41971.0,0.00111564]
[1644193493539,0.5901,41972.0,41970.0,0.03065915]
[1644193493724,0.1938,41972.0,41965.0,0.00319295]
[1644193493924,0.449831,41971.0,41964.0,0.3552645]
[1644193494127,0.607013,41973.0,41964.0,0.3552645]
[1644193494128,0.059613,41973.0,41970.0,1.1938]
[1644193494328,1.71301894,41979.0,41971.0,1.2]
[1644193494331,0.1596,41979.0,41971.0,1.2]
[1644193494524,0.38599161,41997.0,41983.0,0.5663156]
[1644193494925,0.38599161,41997.0,41985.0,1.2]
[1644193494926,0.05,41997.0,41985.0,1.2]
[1644193495124,0.0438,41996.0,41994.0,0.26528399]
[1644193495330,0.05,41997.0,41985.0,1.2]
[1644193495573,0.05,41997.0,41990.0,0.26321166]
[1644193495574,0.0695206,41997.0,41990.0,0.26321166]
[1644193495773,0.0185206,41997.0,41990.0,0.26321166]
[1644193495972,0.0185206,41997.0,41990.0,0.61952297]
[1644193496177,0.0185206,41997.0,41995.0,0.25042293]
[1644193496376,0.0185206,41997.0,41991.0,0.00050251]
[1644193497173,0.32335111,42006.0,41985.0,1.2]
[1644193497377,0.05,42007.0,42002.0,0.19492773]
[1644193497578,0.05,42018.0,42002.0,0.19492773]
[1644193497776,0.05,42018.0,41996.0,0.0185206]
[1644193497777,0.05,42012.0,41996.0,0.0185206]
[1644193497978,0.61144152,42011.0,41996.0,0.0185206]
[1644193498175,0.01868652,42004.0,41992.0,0.00050251]
[1644193498377,0.01868652,42004.0,41994.0,0.21437329]
[1644193498576,0.01868652,42004.0,42001.0,0.00050243]
[1644193498778,0.01868652,42004.0,42001.0,0.2703196]
[1644193498976,0.01868652,42004.0,42001.0,0.00050243]
[1644193499223,0.01868652,42004.0,41992.0,0.20044897]
[1644193499427,0.01868652,42004.0,41993.0,0.33066]
[1644193499625,0.01868652,42004.0,41994.0,0.0438]
[1644193499826,0.01868652,42004.0,42001.0,0.24411652]
[1644193500028,0.01868652,42004.0,41998.0,0.0438]
[1644193500531,0.01868652,42004.0,41997.0,0.19894888]
[1644193500727,0.01868652,42004.0,41986.0,0.0438]
[1644193501127,0.00017796,42003.0,41986.0,0.0438]
[1644193501332,0.3239913,42003.0,41986.0,0.01918056]
[1644193501535,0.05,41995.0,41986.0,0.01918056]
[1644193501729,0.35789837,41994.0,41986.0,0.01918056]
[1644193501926,0.15,41994.0,41986.0,0.01918056]
[1644193502128,0.15,41994.0,41986.0,0.21129607]
[1644193502330,0.05,41994.0,41986.0,0.21129607]
[1644193502527,0.10565444,41995.0,41986.0,0.21129607]
[1644193502726,0.05,41994.0,41986.0,0.01918056]
[1644193502969,0.60485129,41993.0,41985.0,1.36795673]
[1644193503167,0.05,41994.0,41985.0,1.16918056]
[1644193503366,0.01918056,41987.0,41975.0,0.01994531]
[1644193503570,0.01918056,41987.0,41981.0,0.00220371]
[1644193503970,0.33066,41986.0,41981.0,0.00220371]
[1644193504167,0.01918056,41987.0,41981.0,0.00220371]
[1644193504370,0.42813804,41985.0,41981.0,0.00220371]
[1644193504569,0.15,41986.0,41975.0,0.01994531]
[1644193504570,0.33066,41983.0,41975.0,0.01994531]
[1644193504869,0.43066,41983.0,41982.0,0.00051269]
[1644193505067,0.48426,41983.0,41982.0,0.00051269]
[1644193505267,0.81830501,41983.0,41982.0,0.00051269]
[1644193505673,0.47926,41983.0,41961.0,0.09658724]
[1644193505869,0.33066,41981.0,41980.0,0.00051271]
[1644193506269,0.43066,41981.0,41980.0,0.00051271]
[1644193506475,0.33066,41981.0,41980.0,0.00051271]
[1644193506938,0.01918056,41987.0,41978.0,0.22978049]
[1644193507135,0.33066,41986.0,41978.0,0.22978049]
[1644193507336,0.33066,41985.0,41978.0,0.22978049]
[1644193507534,0.01911082,41986.0,41978.0,0.22978049]
[1644193507535,0.33066,41984.0,41980.0,0.25851773]
[1644193507735,0.01911082,41986.0,41980.0,0.25851773]
[1644193507935,0.01911082,41986.0,41978.0,0.22978049]
[1644193508536,0.01911082,41986.0,41975.0,0.30271538]
[1644193508935,0.01911082,41986.0,41976.0,0.24269525]
[1644193508936,0.06911082,41986.0,41976.0,0.24269525]
[1644193509140,0.01911082,41986.0,41976.0,0.24283867]
[1644193509336,0.0187343,41986.0,41976.0,0.24283867]
[1644193509537,0.05,41989.0,41976.0,0.24283867]
[1644193509739,0.0005509,41983.0,41974.0,0.00055102]
[1644193509939,0.05,41976.0,41974.0,0.00055102]
[1644193510137,0.0005509,41983.0,41974.0,0.00055102]
[1644193510138,0.05,41979.0,41974.0,0.00055102]
[1644193510337,0.33066,41978.0,41974.0,0.00055102]
[1644193510567,0.33066,41978.0,41962.0,0.00903043]
[1644193510568,0.33066,41978.0,41970.0,0.38008886]
[1644193510768,0.15,41981.0,41974.0,0.000551]
[1644193510971,0.00055094,41979.0,41974.0,0.000551]
[1644193511570,0.00055094,41979.0,41975.0,0.26228788]
[1644193511875,0.05,41979.0,41975.0,0.26228788]
[1644193512069,0.05,41979.0,41974.0,0.21851821]
[1644193512070,0.05,41978.0,41974.0,0.00069442]
[1644193512269,0.05,41978.0,41974.0,0.000551]
[1644193512468,0.00055094,41979.0,41974.0,0.000551]
[1644193512669,0.01544434,41981.0,41975.0,0.7]
[1644193512969,0.01544434,41981.0,41975.0,0.00014342]
[1644193512970,0.05,41978.0,41975.0,0.00014342]
[1644193513170,0.01544434,41981.0,41974.0,0.20582618]
[1644193513472,0.01544434,41981.0,41970.0,0.00014342]
[1644193513473,0.05,41975.0,41970.0,0.00014342]
[1644193513669,0.33066,41980.0,41973.0,0.00014342]
[1644193513972,0.33066,41979.0,41969.0,0.00076224]
[1644193514423,0.33066,41979.0,41970.0,0.26404052]
[1644193514424,0.43066,41979.0,41970.0,0.26404052]
[1644193514715,0.43066,41979.0,41970.0,0.26418394]
[1644193514716,0.1,41979.0,41970.0,0.26418394]
[1644193514916,0.09160396,41977.0,41970.0,0.00014342]
[1644193515117,0.1,41979.0,41969.0,0.00090566]
[1644193515118,0.09917445,41972.0,41969.0,0.00090566]
[1644193515316,0.33066,41970.0,41969.0,0.00076224]
[1644193516118,0.1,41976.0,41969.0,0.00076224]
[1644193516318,0.15,41976.0,41969.0,0.00090566]
[1644193516519,0.33066,41974.0,41969.0,0.00076224]
[1644193516922,0.33066,41973.0,41970.0,0.00055129]
[1644193517120,0.15,41974.0,41970.0,0.00055129]
[1644193517420,0.05,41979.0,41972.0,0.26905241]
[1644193517422,0.02166688,41975.0,41972.0,0.26905241]
[1644193517821,0.0233,41974.0,41972.0,0.26905241]
[1644193519572,0.0233,41974.0,41971.0,0.00055129]
[1644193519972,0.0183,41974.0,41971.0,0.00055129]
[1644193520172,0.0183,41974.0,41970.0,0.00014342]
[1644193520376,0.0183,41974.0,41970.0,0.00055129]
[1644193520572,0.0183,41974.0,41970.0,0.24378011]
[1644193520981,0.05,41977.0,41970.0,0.00055129]
[1644193521173,0.05,41977.0,41970.0,0.00069471]
[1644193521374,0.045,41977.0,41970.0,0.00014342]
[1644193521737,0.0183,41978.0,41965.0,0.00220545]
[1644193521738,0.045,41971.0,41965.0,0.00220545]
[1644193521934,0.16478794,41976.0,41965.0,0.00220545]
[1644193521935,0.045,41966.0,41965.0,0.00220545]
[1644193522136,0.37566,41966.0,41965.0,0.00220545]
[1644193522334,0.47566,41966.0,41965.0,0.00220545]
[1644193522735,0.1,41966.0,41962.0,0.00493609]
[1644193522933,0.1,41974.0,41963.0,0.00055135]
[1644193523135,0.1,41974.0,41960.0,0.03807858]
[1644193523136,0.045,41968.0,41960.0,0.03807858]
[1644193523534,0.06423498,41968.0,41960.0,0.03807858]
[1644193523735,0.040771,41966.0,41960.0,0.03807858]
[1644193523934,0.01923498,41968.0,41960.0,0.03807858]
[1644193524134,0.01923498,41968.0,41967.0,0.19471257]
[1644193524535,0.01923498,41968.0,41959.0,0.117229]
[1644193524738,0.040771,41966.0,41959.0,0.108]
[1644193524937,0.33066,41965.0,41959.0,0.108]
[1644193525335,0.43066,41965.0,41960.0,0.00055138]
[1644193525571,0.09521397,41963.0,41960.0,0.00055138]
[1644193525772,0.10414352,41962.0,41960.0,0.00055138]
[1644193525972,0.1,41965.0,41960.0,0.00055138]
[1644193526171,0.10192292,41963.0,41961.0,0.009229]
[1644193526370,0.10192292,41963.0,41959.0,0.108]
[1644193526371,0.33066,41961.0,41959.0,0.108]
[1644193526574,0.33066,41961.0,41959.0,0.10355138]
[1644193526575,0.28850557,41960.0,41959.0,0.10355138]
[1644193526774,0.66916557,41960.0,41959.0,0.10355138]
[1644193526972,0.66916557,41960.0,41955.0,0.002]
[1644193526976,1.2,41959.0,41955.0,0.002]
[1644193527173,1.2,41959.0,41950.0,0.00452326]
[1644193527174,0.040771,41956.0,41951.0,0.0081]
[1644193527392,0.040771,41956.0,41926.0,0.00358536]
[1644193527393,0.05,41952.0,41926.0,0.00063116]
[1644193527575,0.33674418,41953.0,41926.0,0.00063116]
[1644193527576,0.05,41930.0,41926.0,0.00063116]
[1644193527780,0.045,41930.0,41918.0,0.10750796]
[1644193527974,0.34896,41929.0,41921.0,0.00257844]
[1644193528172,0.34896,41929.0,41925.0,0.008363]
[1644193528372,0.05,41927.0,41925.0,0.008363]
[1644193528576,0.33066,41926.0,41925.0,0.008363]
[1644193529224,0.37446,41926.0,41925.0,0.008363]
[1644193529426,0.522953,41926.0,41921.0,0.00257844]
[1644193529628,0.522953,41926.0,41911.0,0.0111]
[1644193529631,0.55,41921.0,41911.0,0.0111]
[1644193529827,0.55,41921.0,41901.0,0.23029765]
[1644193529828,0.059701,41919.0,41918.0,0.008363]
[1644193530031,0.36583056,41919.0,41918.0,0.008363]
[1644193530226,0.55833015,41919.0,41918.0,0.008363]
[1644193530428,0.60833015,41919.0,41918.0,0.003363]
[1644193530626,0.330829,41918.0,41914.0,0.00036991]
[1644193530828,0.330829,41915.0,41914.0,0.00036991]
[1644193531026,0.374629,41915.0,41914.0,0.00036991]
[1644193531226,0.374629,41915.0,41910.0,0.0052138]
[1644193531227,0.342091,41915.0,41910.0,0.0052138]
[1644193531425,0.0438,41915.0,41912.0,0.00034523]
[1644193531625,0.0438,41915.0,41911.0,0.24797296]
[1644193531824,0.0438,41915.0,41911.0,0.33667919]
[1644193532030,0.01834049,41920.0,41918.0,0.22180112]
[1644193532326,0.01834049,41920.0,41919.0,0.260182]
[1644193532525,0.01834049,41920.0,41910.0,0.0052138]
[1644193532730,0.330839,41916.0,41910.0,0.0052138]
[1644193532981,0.330839,41916.0,41910.0,0.0002138]
[1644193533472,0.0191977,41916.0,41913.0,0.20027101]
[1644193533875,0.0191977,41916.0,41913.0,0.18027101]
[1644193534374,0.0191977,41916.0,41910.0,0.0002138]
[1644193535577,0.0191977,41916.0,41912.0,0.26316886]
[1644193535578,0.02068928,41916.0,41912.0,0.26316886]
[1644193535974,0.02068928,41916.0,41910.0,0.0002138]
[1644193536176,0.05,41912.0,41910.0,0.0002138]
[1644193536374,0.330339,41915.0,41910.0,0.0002138]
[1644193536375,0.330843,41914.0,41910.0,0.0002138]
[1644193536823,0.430843,41914.0,41910.0,0.00076452]
[1644193537023,0.10003446,41913.0,41910.0,0.00076452]
[1644193537224,0.330843,41912.0,41910.0,0.00076452]
[1644193537427,0.86704099,41911.0,41910.0,0.0002138]
[1644193537627,1.62665099,41911.0,41910.0,0.0002138]
[1644193537825,1.72665099,41911.0,41897.0,0.0196168]
[1644193538029,1.72665099,41911.0,41907.0,0.00014311]
[1644193538030,1.39580799,41911.0,41907.0,0.00014311]
[1644193538223,1.39580799,41911.0,41897.0,0.0196168]
[1644193538224,0.330843,41910.0,41902.0,0.22232625]
[1644193538425,0.330843,41910.0,41903.0,0.05]
[1644193538426,0.330843,41909.0,41903.0,0.05]
[1644193538624,0.330843,41908.0,41903.0,0.05]
[1644193539028,0.27469077,41907.0,41900.0,0.06503938]
[1644193539229,0.27469077,41907.0,41900.0,0.05503938]
[1644193539230,0.361843,41906.0,41900.0,0.05503938]
[1644193539427,0.361843,41906.0,41897.0,0.0196168]
[1644193539428,0.059728,41903.0,41897.0,0.0196168]
[1644193539629,1.03262363,41902.0,41897.0,0.0196168]
[1644193539928,0.330877,41900.0,41895.0,0.00212106]
[1644193540129,0.28164893,41899.0,41895.0,0.00212106]
[1644193540331,0.28164893,41899.0,41878.0,0.108]
[1644193540332,0.85,41897.0,41878.0,0.108]
[1644193540581,0.6,41895.0,41881.0,0.00864618]
[1644193540778,0.6,41895.0,41885.0,0.05]
[1644193540779,0.51840748,41894.0,41885.0,0.05]
[1644193540978,0.51840748,41894.0,41885.0,0.02245834]
[1644193540979,0.02754166,41886.0,41885.0,0.02245834]
[1644193541181,1.2,41884.0,41878.0,0.01263366]
[1644193541377,1.2,41884.0,41860.0,0.0011]
[1644193541378,0.02754166,41879.0,41860.0,0.0011]
[1644193541589,0.02754166,41879.0,41865.0,0.008363]
[1644193541590,0.330893,41868.0,41865.0,0.008363]
[1644193541775,0.330893,41868.0,41855.0,0.01003181]
[1644193541776,0.05,41863.0,41855.0,0.01003181]
[1644193541975,2.56308169,41867.0,41853.0,0.0011]
[1644193541976,1.56992253,41855.0,41853.0,0.0011]
[1644193542176,1.56992253,41855.0,41822.0,0.75214955]
[1644193542177,0.54288,41853.0,41822.0,0.75214955]
[1644193542375,0.54288,41853.0,41823.0,0.41252271]
[1644193542376,0.1,41853.0,41823.0,0.41252271]
[1644193542579,0.1,41853.0,41823.0,0.41088571]
[1644193542580,0.05,41833.0,41823.0,0.41088571]
[1644193542777,0.28840668,41843.0,41832.0,0.0011]
[1644193542975,0.05,41849.0,41831.0,0.32768028]
[1644193543284,0.330893,41848.0,41847.0,0.22774314]
[1644193543577,0.33312791,41859.0,41848.0,1.2]
[1644193543578,0.42,41859.0,41848.0,1.2]
[1644193543774,0.42,41859.0,41849.0,0.35607633]
[1644193543975,0.05,41861.0,41860.0,0.2001994]
[1644193544236,0.6123,41874.0,41860.0,0.90103594]
[1644193544237,0.42,41874.0,41860.0,0.90103594]
[1644193544432,0.42,41874.0,41862.0,0.23692746]
[1644193544633,0.42,41874.0,41852.0,0.00156136]
[1644193544834,0.05,41862.0,41852.0,0.00156136]
[1644193545032,0.05,41862.0,41861.0,0.001]
[1644193545033,0.9989,41862.0,41861.0,0.001]
[1644193545232,0.9989,41862.0,41852.0,0.00156136]
[1644193545233,1.201,41861.0,41852.0,0.00106136]
[1644193545435,0.05,41853.0,41829.0,0.088154]
[1644193545634,0.9989,41856.0,41821.0,0.03116068]
[1644193545635,0.05,41844.0,41821.0,0.03116068]
[1644193545844,0.9989,41851.0,41811.0,0.00249785]
[1644193545849,0.6,41834.0,41811.0,0.00249785]
[1644193546035,0.331118,41833.0,41811.0,0.00249785]
[1644193546435,0.099903,41833.0,41831.0,0.20559225]
[1644193546635,0.33117,41832.0,41815.0,0.38348292]
[1644193546836,0.099903,41833.0,41823.0,0.008363]
[1644193547036,0.31117,41832.0,41817.0,0.25984035]
[1644193547236,0.099903,41833.0,41817.0,0.25984035]
[1644193547436,0.099903,41833.0,41817.0,0.22984035]
[1644193547437,0.12070345,41833.0,41817.0,0.22984035]
[1644193547636,0.09276803,41832.0,41817.0,0.22984035]
[1644193547837,0.331159,41831.0,41811.0,0.00249785]
[1644193548082,0.09941394,41830.0,41811.0,0.05249785]
[1644193548282,0.40436826,41833.0,41811.0,0.00249785]
[1644193548283,0.09121474,41828.0,41811.0,0.00249785]
[1644193548486,0.40436826,41833.0,41811.0,0.00249785]
[1644193548487,0.071389,41827.0,41811.0,0.00249785]
[1644193548683,0.12070345,41833.0,41832.0,0.2351731]
[1644193548886,0.02080045,41833.0,41832.0,0.92478218]
[1644193549085,0.6,41832.0,41812.0,0.24685555]
[1644193549287,0.09277192,41831.0,41813.0,0.331119]
[1644193549488,0.02080045,41833.0,41813.0,0.331119]
[1644193549489,0.10492768,41830.0,41813.0,0.331119]
[1644193549687,0.36889799,41838.0,41813.0,0.331119]
[1644193549688,0.09985478,41828.0,41813.0,0.331119]
[1644193549887,0.02114082,41838.0,41823.0,0.39645686]
[1644193550092,0.04752,41837.0,41823.0,0.06533786]
[1644193550289,0.02114082,41838.0,41836.0,0.0828743]
[1644193550493,0.02114082,41838.0,41822.0,0.33891119]
[1644193550494,0.01614082,41838.0,41822.0,0.33891119]
[1644193550892,0.05,41830.0,41814.0,0.11958739]
[1644193551096,0.05,41824.0,41811.0,0.00359785]
[1644193551290,0.01614082,41838.0,41811.0,0.00359785]
[1644193551291,0.321103,41822.0,41811.0,0.00359785]
[1644193551492,0.05,41819.0,41811.0,0.00359785]
[1644193551724,0.67539909,41818.0,41811.0,0.00359785]
[1644193552024,0.67539909,41818.0,41810.0,9.231e-05]
[1644193552025,0.32520811,41814.0,41810.0,9.231e-05]
[1644193552224,0.05,41811.0,41810.0,9.231e-05]
[1644193552425,1.2,41810.0,41802.0,0.00193951]
[1644193552627,1.2,41810.0,41802.0,0.00312843]
[1644193552628,0.05,41803.0,41802.0,0.00312843]
[1644193552830,1.2,41802.0,41800.0,0.00127338]
[1644193553026,1.2,41802.0,41791.0,0.01]
[1644193553027,0.03187493,41797.0,41791.0,0.01]
[1644193553227,0.03187493,41797.0,41765.0,0.1499]
[1644193553228,1.15,41796.0,41768.0,0.00264222]
[1644193553424,1.15,41796.0,41779.0,0.25701255]
[1644193553425,0.05,41790.0,41779.0,0.25701255]
[1644193553630,0.05,41790.0,41768.0,0.0003072]
[1644193553631,0.6440969,41789.0,41768.0,0.0003072]
[1644193553826,0.9989,41787.0,41768.0,0.0003072]
[1644193554030,0.29318395,41786.0,41768.0,0.0003072]
[1644193554225,1.33022,41785.0,41768.0,0.0003072]
[1644193554425,0.0438,41784.0,41768.0,0.0003072]
[1644193554625,0.33132,41783.0,41781.0,0.07125505]
[1644193554824,0.37512,41783.0,41779.0,0.00013554]
[1644193555025,0.0438,41783.0,41779.0,0.00013554]
[1644193555226,0.33132,41782.0,41778.0,0.19419107]
[1644193555499,0.09957194,41785.0,41779.0,0.32732]
[1644193555693,0.09957194,41785.0,41776.0,0.00013554]
[1644193555695,0.07836681,41785.0,41776.0,0.00013554]
[1644193555894,0.07836681,41785.0,41775.0,0.0003072]
[1644193555895,0.65947136,41784.0,41775.0,0.0003072]
[1644193556094,0.65947136,41784.0,41775.0,0.0006144]
[1644193556095,0.95,41783.0,41775.0,0.0006144]
[1644193556300,0.3313,41782.0,41775.0,0.0006144]
[1644193556494,0.05,41776.0,41775.0,0.0006144]
[1644193556697,0.3813,41776.0,41775.0,0.0006144]
[1644193557196,0.71049803,41776.0,41775.0,0.0006144]
[1644193557395,0.71049803,41776.0,41753.0,0.34769313]
[1644193557396,0.71049803,41776.0,41723.0,0.0007291]
[1644193557397,1.2,41775.0,41723.0,0.0007291]
[1644193557594,1.0427,41774.0,41723.0,0.09204]
[1644193557795,0.9989,41770.0,41723.0,0.06704]
[1644193557993,0.5684903,41773.0,41723.0,0.06704]
[1644193557994,0.01598016,41767.0,41755.0,0.06707121]
[1644193558197,0.95,41766.0,41736.0,0.0438]
[1644193558395,1.30828584,41766.0,41736.0,0.0438]
[1644193558596,0.65,41764.0,41736.0,0.0348]
[1644193558903,0.09497191,41763.0,41759.0,0.25132267]
[1644193559097,0.01598016,41767.0,41763.0,0.06372984]
[1644193559098,1.6e-07,41767.0,41763.0,0.06372984]
[1644193559336,0.13704735,41779.0,41766.0,0.01598]
[1644193559537,0.02170361,41788.0,41768.0,1.19]
[1644193559841,0.01,41799.0,41768.0,1.19]
[1644193559842,0.167845,41837.0,41787.0,0.5]
[1644193560037,0.5,41817.0,41799.0,0.07297714]
[1644193560235,0.5,41817.0,41796.0,0.5474]
[1644193560236,0.15133461,41833.0,41808.0,0.07984958]
[1644193560435,0.108,41837.0,41811.0,0.5474]
[1644193560638,0.108,41837.0,41819.0,0.27683009]
[1644193560834,0.108,41837.0,41820.0,0.71427004]
[1644193561034,0.108,41837.0,41821.0,0.0438]
[1644193561237,0.108,41837.0,41833.0,0.22715985]
[1644193561443,0.108,41837.0,41835.0,0.33924173]
[1644193561634,3.16746,41840.0,41837.0,1.2]
[1644193561834,3.16746,41840.0,41838.0,0.0438]
[1644193562033,0.01996467,41848.0,41838.0,0.0438]
[1644193562034,0.01996467,41848.0,41840.0,0.3313]
[1644193562239,0.01996467,41848.0,41842.0,0.41817032]
[1644193562435,0.01996467,41848.0,41843.0,0.0438]
[1644193562436,0.01496467,41848.0,41843.0,0.0438]
[1644193562633,0.01496467,41848.0,41844.0,0.64545275]
[1644193562834,0.01496467,41848.0,41845.0,0.0438]